fUSD/lending_fUSD_20240217
["ID","MTS","AMOUNT","RATE_DAILY","PERIOD"]
[314297905,1708162232545,-597.374818,0.00034794,2]
[314297906,1708162232556,-499.99,0.00034831,2]
[314297907,1708162232565,-5753.42,0.00034831,2]
[314297908,1708162232576,-796.499758,0.00034931,2]
[314297909,1708162232587,-995.624698,0.00035068,2]
[314297910,1708162232598,-1393.874577,0.00035342,2]
[314297911,1708162232609,-598.48,0.00036776,2]
[314297912,1708162232623,-426.55,0.00037184,2]
[314297913,1708162232635,-150.0,0.00037184,2]
[314297915,1708162232646,-1282.44432818,0.00037252,2]
[314297917,1708162232661,-993.79654298,0.00037252,2]
[314297919,1708162232674,-428.75912884,0.00037252,2]
[314297920,1708162232686,-500.0,0.00037295,2]
[314297921,1708162232696,-200.0,0.0003732,2]
[314297922,1708162232708,-250.0,0.00037391,2]
[314297923,1708162232719,-250.0,0.00037402,111]
[314297924,1708162232729,-200.0,0.00037648,2]
[314297925,1708162232739,-1852.42,0.0003781,2]
[314297926,1708162232748,-500.0,0.00037865,2]
[314297927,1708162232757,-152.323226,0.00038231,2]
[314297928,1708162232766,-621.90616497,0.00038312,3]
[314297929,1708162232776,-151.98,0.00038356,2]
[314297930,1708162232785,-345.89,0.00038356,15]
[314297931,1708162232796,-1548.75,0.00038635,2]
[314297932,1708162232807,-4251.62268992,0.00038646,7]
[314297933,1708162233060,-1610.90268497,0.00038646,7]
[314297934,1708162233080,-1708.80400085,0.00038646,7]
[314297935,1708162233141,-1230.34354417,0.00038646,7]
[314297940,1708162238318,-7071.08166604,0.00038646,7]
[314297941,1708162238328,-857.84851804,0.00038648,2]
[314297942,1708162238339,-9640.00148196,0.00038648,2]
[314297943,1708162238349,-5886.03597761,0.00038648,2]
[314297944,1708162238376,-609.47680672,0.00038648,2]
[314297945,1708162238493,-31936.95721567,0.00038648,2]
[314297946,1708162238503,-300.0,0.00038672,2]
[314297947,1708162238512,-150.0,0.00038738,2]
[314297948,1708162238521,-200.0,0.00038765,2]
[314297949,1708162238531,-750.0,0.00038796,2]
[314297950,1708162238541,-500.0,0.00038801,2]
[314297951,1708162238550,-503.34,0.00038828,2]
[314297952,1708162238559,-10497.85,0.00038872,2]
[314297953,1708162238569,-598.48,0.0003904,2]
[314297954,1708162238578,-426.55,0.00039044,2]
[314297955,1708162238587,-9596.82278433,0.00039055,2]
[314297956,1708162238613,-5200.31146814,0.00039055,2]
[314297957,1708162238625,-9102.86574753,0.00039055,2]
[314297958,1708162238635,-2027.06545247,0.00039095,2]
[314297959,1708162238647,-328.63431977,0.00039095,2]
[314297960,1708162238659,-8142.15022776,0.00039095,2]
[314297961,1708162238669,-7676.7141708,0.00039318,2]
[314297962,1708162238681,-423.356324,0.00039318,2]
[314297963,1708162238693,-2397.7795052,0.00039318,2]
[314297964,1708162238702,-1812.36844372,0.00039491,2]
[314297965,1708162238711,-10497.85,0.00039542,2]
[314297966,1708162238721,-177.43,0.00039591,2]
[314297967,1708162238730,-7197.26263757,0.00039765,2]
[314297968,1708162238743,-3300.58736243,0.00039765,2]
[314297969,1708162238752,-225.32,0.000398,2]
[314297970,1708162238762,-290.25210645,0.0003995,7]
[314297971,1708162238771,-10497.85,0.00039988,2]
[314297972,1708162238780,-300.0,0.00040042,2]
[314297973,1708162238791,-177.43,0.00040139,2]
[314297974,1708162238802,-10497.85,0.00040212,2]
[314297975,1708162238811,-2000.0,0.00040361,2]
[314297976,1708162238821,-500.0,0.00040377,2]
[314297977,1708162238831,-10497.85,0.00040435,2]
[314297978,1708162238840,-250.0,0.00040462,2]
[314297979,1708162238850,-503.34,0.00040472,2]
[314297980,1708162238861,-207.225,0.00040491,2]
[314297981,1708162238870,-283.5359,0.00040491,2]
[314297982,1708162238881,-418.5507,0.00040491,2]
[314297983,1708162238890,-42238.45072207,0.00040491,2]
[314297984,1708162240894,-82152.38458612,0.00040491,2]
[314297985,1708162240906,-7931.6328764,0.00040491,2]
[314297986,1708162240918,-2540.97307841,0.00040491,2]
[314297987,1708162241647,-1350.39539995,0.00040491,2]
[314297988,1708162241660,-763.04314098,0.00040491,2]
[314297989,1708162241719,-865.44923091,0.00040491,2]
[314297990,1708162241731,-428.1062567,0.00040491,2]
[314297991,1708162241743,-2925.98626232,0.00040491,2]
[314297992,1708162241778,-801.48752944,0.00040491,2]
[314297993,1708162241790,-1136.42555333,0.00040491,2]
[314297994,1708162241804,-544.13000421,0.00040491,2]
[314297995,1708162241816,-491.87625854,0.00040491,2]
[314297996,1708162241839,-7976.48895705,0.00040491,2]
[314297997,1708162243244,-2363.061543,0.00040491,2]
[314297999,1708162243256,-7623.138457,0.00040491,2]
[314298000,1708162243359,-6992.44712729,0.00040491,2]
[314298001,1708162243374,-8664.94794576,0.00040491,2]
[314298002,1708162243390,-2005.77526688,0.00040491,2]
[314298003,1708162243402,-672.63499416,0.00040491,2]
[314298004,1708162243572,-12600.91757273,0.00040491,2]
[314298005,1708162243585,-5907.54793839,0.00040491,2]
[314298006,1708162243598,-3915.1351933,0.00040491,2]
[314298007,1708162243609,-13468.81371338,0.00040491,2]
[314298008,1708162243621,-15507.01638508,0.00040491,2]
[314298012,1708162246286,-438.97155858,0.00040491,2]
[314298013,1708162246301,-623.72251867,0.00040491,2]
[314298014,1708162246313,-1015.741203,0.00040491,2]
[314298015,1708162246325,-662.51248517,0.00040491,2]
[314298016,1708162246337,-264.6300005,0.00040491,2]
[314298017,1708162246348,-270.268996,0.00040491,2]
[314298019,1708162532292,6116.89,0.00025,10]
[314298020,1708162613755,749.5947194,0.00033,120]
[314298023,1708163144502,550.0,0.00025,3]
[314298059,1708163431470,-244.0,0.00026999,2]
[314298060,1708163431479,-600.0,0.00027,3]
[314298061,1708163431488,-908.5809168,0.0003,2]
[314298062,1708163431498,-500.0,0.00033,3]
[314298063,1708163431507,-2892.20342618,0.00036582,4]
[314298064,1708163431519,-732.39647192,0.00036583,4]
[314298065,1708163431528,-581.22,0.00036586,2]
[314298066,1708163431538,-150.0,0.00037868,2]
[314298067,1708163431547,-150.0,0.00037926,2]
[314298068,1708163431557,-152.323226,0.00037994,2]
[314298069,1708163431567,-3098.76401811,0.00038,2]
[314298070,1708163431717,-2477.23598189,0.00038,2]
[314298071,1708163431727,-500.0,0.00038052,2]
[314298072,1708163431736,-250.0,0.00038072,2]
[314298073,1708163431745,-200.0,0.00038094,2]
[314298074,1708163431755,-250.0,0.00038098,2]
[314298075,1708163431764,-2000.0,0.00038115,2]
[314298076,1708163431774,-255.93,0.00038131,2]
[314298077,1708163431783,-4727.07,0.00038138,2]
[314298078,1708163431792,-500.0,0.00038141,2]
[314298079,1708163431806,-2705.0,0.00038155,2]
[314298080,1708163431815,-1049.78,0.00038251,2]
[314298081,1708163431825,-250.0,0.00038331,111]
[314298082,1708163431836,-151.98,0.00038356,2]
[314298084,1708163431845,-317.06,0.00038356,15]
[314298086,1708163431855,-200.0,0.00038363,2]
[314298088,1708163431865,-1049.78,0.00038472,2]
[314298090,1708163431874,-621.90616497,0.00038485,3]
[314298092,1708163431884,-177.43,0.00038487,2]
[314298095,1708163431893,-192.86,0.00038504,2]
[314298099,1708163431903,-1852.42,0.00038529,2]
[314298101,1708163431912,-461.39,0.00038566,2]
[314298103,1708163431921,-348.69422596,0.00038583,4]
[314298105,1708163431930,-15872.75458595,0.00038585,7]
[314298107,1708163431939,-500.0,0.00038587,2]
[314298108,1708163431949,-23900.0,0.00038587,2]
[314298109,1708163431957,-1049.78,0.00038693,2]
[314298110,1708163431967,-224.99,0.00038812,30]
[314298111,1708163431976,-581.22,0.0003885,2]
[314298112,1708163431985,-1049.78,0.00038914,2]
[314298113,1708163431994,-169.59,0.00038916,2]
[314298114,1708163432003,-499.99,0.00039032,2]
[314298115,1708163432012,-177.43,0.00039035,2]
[314298116,1708163432021,-1049.78,0.00039135,2]
[314298117,1708163432030,-235.05,0.00039149,2]
[314298118,1708163432039,-1049.78,0.00039356,2]
[314298119,1708163432049,-300.0,0.00039499,2]
[314298120,1708163432058,-1049.78,0.00039577,2]
[314298121,1708163432067,-177.43,0.00039583,2]
[314298122,1708163432077,-1000.0,0.00039698,2]
[314298123,1708163432088,-1049.78,0.00039798,2]
[314298124,1708163432097,-191.52,0.000398,2]
[314298125,1708163432107,-5000.0,0.0004,30]
[314298126,1708163432116,-1049.78,0.00040019,2]
[314298127,1708163432125,-255.93,0.00040037,2]
[314298128,1708163432134,-3000.0,0.0004009,2]
[314298129,1708163432143,-3679.9877,0.00040091,2]
[314298130,1708163432153,-136433.8065,0.00040091,2]
[314298131,1708163432163,-177.43,0.00040131,2]
[314298132,1708163432172,-58525.1665,0.00040191,2]
[314298133,1708163432182,-2500.0,0.00040191,2]
[314298134,1708163432191,-322.0563,0.00040191,2]
[314298135,1708163432200,-17834.2096,0.00040191,2]
[314298136,1708163432209,-4351.324,0.00040191,2]
[314298137,1708163432219,-2434.257,0.00040191,2]
[314298138,1708163432228,-1000.0,0.00040191,2]
[314298139,1708163432237,-1659.7397369,0.00040191,2]
[314298140,1708163432249,-554.41014608,0.00040191,2]
[314298141,1708163432260,-461.39,0.0004021,2]
[314298142,1708163432270,-1049.78,0.0004024,2]
[314298143,1708163432279,-465.0,0.00040291,2]
[314298144,1708163432288,-1879.7351,0.00040291,2]
[314298145,1708163432297,-901.22602006,0.00040291,5]
[314298146,1708163432307,-326.39602264,0.00040291,12]
[314298147,1708163432316,-199.85791405,0.00040381,2]
[314298148,1708163432326,-1222.8295,0.0004039,2]
[314298149,1708163432336,-6287.986,0.0004039,2]
[314298150,1708163432346,-592.8676,0.00040391,2]
[314298151,1708163432356,-7771.9711,0.00040391,2]
[314298152,1708163432366,-245000.0,0.00040391,2]
[314298153,1708163432375,-39498.4927,0.00040391,2]
[314298154,1708163432384,-1000.0,0.00040391,2]
[314298155,1708163432394,-654.5201,0.00040451,2]
[314298156,1708163432404,-1058.7756,0.00040451,2]
[314298157,1708163432413,-560.55783652,0.00040489,4]
[314298158,1708163432615,-1203.75829693,0.0004049,4]
[314298159,1708163432626,-1459.7906,0.00040491,2]
[314298160,1708163432636,-500.0,0.00040491,2]
[314298161,1708163432645,-100000.0,0.00040491,2]
[314298162,1708163432654,-1212.91218193,0.00040491,4]
[314298163,1708163432664,-3943.2958961,0.00040491,7]
[314298164,1708163432673,-510.01723771,0.00040512,2]
[314298165,1708163432682,-4645.80624573,0.00040568,12]
[314298166,1708163432692,-5312.70363297,0.00040568,12]
[314298167,1708163432701,-353.26648561,0.00040568,11]
[314298168,1708163432711,-51789.6830534,0.00040591,13]
[314298169,1708163432721,-17474.21561947,0.00040609,12]
[314298170,1708163432730,-25894.8415267,0.00040612,13]
[314298171,1708163432740,-354.77,0.00040679,2]
[314298172,1708163432750,-5811.69176077,0.00040766,11]
[314298173,1708163432759,-64772.62931372,0.00040766,6]
[314298174,1708163432774,-844.43499804,0.00040766,6]
[314298181,1708163437433,-4734.61644403,0.00040766,6]
[314298182,1708163437612,-4089.05463268,0.00040766,6]
[314298183,1708163437624,-8717.70747463,0.00040766,6]
[314298184,1708163437634,-8788.42825391,0.0004079,120]
[314298185,1708163437643,-230.0,0.0004079,120]
[314298186,1708163437652,-899.0,0.0004079,11]
[314298187,1708163437661,-1137.37989133,0.0004079,2]
[314298188,1708163437671,-151.0,0.0004079,30]
[314298189,1708163437680,-7500.0,0.0004079,30]
[314298190,1708163437692,-150.0,0.0004079,30]
[314298191,1708163437701,-300.0,0.00040869,2]
[314298192,1708163437711,-901.22601997,0.00040899,5]
[314298193,1708163437720,-800.0,0.00041,2]
[314298194,1708163437729,-1466.0173137,0.000411,2]
[314298195,1708163437738,-581.22,0.00041114,2]
[314298196,1708163437748,-901.22601997,0.00041508,5]
[314298197,1708163437757,-1659.7397369,0.0004177,4]
[314298198,1708163437767,-554.410146,0.0004177,4]
[314298199,1708163437776,-153.78,0.000418,4]
[314298200,1708163437786,-153.78,0.000418,4]
[314298202,1708163437795,-153.78,0.000418,4]
[314298204,1708163437804,-153.78,0.000418,4]
[314298206,1708163437813,-219.63,0.00041827,2]
[314298208,1708163437822,-461.39,0.00041854,2]
[314298210,1708163437831,-152.323226,0.00041879,2]
[314298212,1708163437841,-255.93,0.00041944,2]
[314298214,1708163437850,-180.0,0.00041971,2]
[314298215,1708163437859,-317.06,0.00042092,15]
[314298216,1708163437868,-901.22601997,0.00042116,5]
[314298217,1708163437877,-152.0,0.00042317,3]
[314298218,1708163437886,-5811.69176077,0.0004258,11]
[314298219,1708163437895,-3000.0,0.0004259,14]
[314298220,1708163437904,-901.22601997,0.00042724,5]
[314298221,1708163437912,-219.63,0.00043306,2]
[314298222,1708163437921,-901.22601997,0.00043333,5]
[314298223,1708163437930,-1659.7397369,0.00043349,5]
[314298224,1708163437940,-554.410146,0.00043349,5]
[314298225,1708163437949,-581.22,0.00043378,2]
[314298226,1708163437958,-356.26627372,0.00043497,2]
[314298227,1708163437970,-105.12372628,0.00043497,2]
[314298228,1708163437990,-255.93,0.0004385,2]
[314298229,1708163438000,-901.22601997,0.00043941,5]
[314298230,1708163438009,-901.22601997,0.0004455,5]
[314298231,1708163438019,-1000.0,0.0004466,2]
[314298232,1708163438029,-162.59564128,0.00044707,2]
[314298233,1708163438038,-219.63,0.00044785,2]
[314298234,1708163438048,-11623.3835215,0.00044797,12]
[314298235,1708163438058,-16902.7416,0.00044807,2]
[314298236,1708163438068,-477.9298,0.00044807,2]
[314298237,1708163438078,-1659.7397369,0.00044927,6]
[314298238,1708163438088,-554.410146,0.00044927,6]
[314298239,1708163438098,-5811.69176077,0.0004499,12]
[314298240,1708163438107,-4833.78305591,0.00045,17]
[314298241,1708163438116,-404.92800675,0.00045,4]
[314298242,1708163438126,-821.0,0.00045,9]
[314298243,1708163438135,-5000.0,0.00045,35]
[314298244,1708163438145,-153.78,0.00045,5]
[314298245,1708163438154,-153.78,0.00045,5]
[314298246,1708163438163,-153.78,0.00045,5]
[314298247,1708163438173,-153.78,0.00045,5]
[314298248,1708163438182,-3000.0,0.0004509,26]
[314298249,1708163438192,-461.39,0.00045141,2]
[314298250,1708163438201,-901.22601997,0.00045158,5]
[314298251,1708163438211,-1861.66346308,0.00045294,4]
[314298252,1708163438220,-581.22,0.00045642,2]
[314298253,1708163438230,-5811.69176077,0.00045756,12]
[314298254,1708163438239,-255.93,0.00045757,2]
[314298255,1708163438249,-152.323226,0.00045763,2]
[314298256,1708163438260,-901.22601997,0.00045766,5]
[314298257,1708163438270,-317.06,0.00045828,15]
[314298258,1708163438280,-502.0110177,0.00046,10]
[314298259,1708163438289,-1009.0,0.00046,14]
[314298260,1708163438300,-219.63,0.00046265,2]
[314298261,1708163438310,-901.22601997,0.00046375,5]
[314298262,1708163438319,-1659.7397369,0.00046506,8]
[314298263,1708163438329,-554.410146,0.00046506,8]
[314298264,1708163438339,-2000.0,0.00046575,7]
[314298265,1708163438348,-200.0,0.00046575,7]
[314298266,1708163438357,-169.59,0.000467,2]
[314298267,1708163438366,-1777.0,0.000467,115]
[314298268,1708163438376,-461.39,0.00046785,2]
[314298269,1708163438385,-152.0,0.00046972,4]
[314298270,1708163438395,-901.22601997,0.00046983,5]
[314298271,1708163438405,-5811.69176077,0.0004699,12]
[314298272,1708163438414,-500.0,0.00047,20]
[314298273,1708163438424,-5811.69176077,0.00047021,12]
[314298274,1708163438433,-842.0,0.00047031,2]
[314298275,1708163438443,-953.0,0.00047031,2]
[314298276,1708163438452,-708.0,0.00047031,2]
[314298277,1708163438462,-1949.0,0.00047031,2]
[314298278,1708163438471,-1255.0,0.00047031,2]
[314298279,1708163438480,-1231.0,0.00047031,2]
[314298280,1708163438490,-858.0,0.00047031,2]
[314298281,1708163438499,-338.062,0.00047031,2]
[314298282,1708163438508,-429.0,0.00047031,2]
[314298283,1708163438519,-1005.0,0.00047031,2]
[314298284,1708163438530,-321.0,0.00047031,2]
[314298285,1708163438539,-343.0,0.00047031,2]
[314298286,1708163438548,-2871.0,0.00047031,2]
[314298287,1708163438558,-217.884,0.00047031,2]
[314298288,1708163438569,-780.493,0.00047031,2]
[314298289,1708163438578,-2290.0,0.00047031,2]
[314298290,1708163438588,-151.302,0.00047031,2]
[314298291,1708163438597,-150.0,0.00047031,2]
[314298292,1708163438607,-180.0,0.00047031,2]
[314298293,1708163438617,-164.113,0.00047031,2]
[314298294,1708163438626,-1037.0,0.00047031,2]
[314298295,1708163438636,-181.935,0.00047031,2]
[314298296,1708163438644,-206.228,0.00047031,2]
[314298297,1708163438654,-150.0,0.00047031,2]
[314298298,1708163438663,-211.956,0.00047031,2]
[314298299,1708163438672,-2000.0,0.00047041,7]
[314298300,1708163438685,-200.0,0.00047041,7]
[314298301,1708163438695,-200.0,0.00047175,30]
[314298302,1708163438704,-200.0,0.00047175,30]
[314298303,1708163438714,-206.0,0.00047487,10]
[314298304,1708163438723,-2000.0,0.00047511,7]
[314298305,1708163438733,-200.0,0.00047511,7]
[314298306,1708163438743,-5811.69176077,0.0004758,12]
[314298307,1708163438753,-3000.0,0.0004759,38]
[314298308,1708163438763,-901.22601997,0.00047591,5]
[314298309,1708163438774,-11623.3835215,0.00047676,12]
[314298310,1708163438784,-43983.38632874,0.00047676,11]
[314298314,1708163440317,-150.0,0.00045,120]
[314298315,1708163440327,-150.0,0.00047031,2]
[314298316,1708163440337,-150.0,0.00047031,2]
[314298317,1708163440347,-39175.05653436,0.00047676,11]
[314298318,1708163440358,-391.06524383,0.00047678,7]
[314298319,1708163440368,-2427.85721117,0.00047678,2]
[314298323,1708163442509,-17691.03592101,0.00047031,120]
[314298324,1708163442522,-2476.15249039,0.00047678,2]
[314298325,1708163442719,-346.80548314,0.00047678,2]
[314298326,1708163442729,-1181.2529493,0.00047679,4]
[314298327,1708163442738,-219.63,0.00047744,2]
[314298328,1708163442748,-218.45652181,0.00047823,30]
[314298329,1708163442757,-150.0,0.00047889,2]
[314298330,1708163442766,-472.92304575,0.00047905,2]
[314298340,1708163445523,-406.88692884,0.00047677,4]
[314298341,1708163445533,-108.29695425,0.00047905,2]
[314298342,1708163445542,-2625.94535257,0.0004799,13]
[314298344,1708163445558,-3185.7464082,0.0004799,13]
[314298346,1708163445568,-600.0,0.00048,20]
[314298347,1708163445577,-13209.15435467,0.00048,30]
[314298348,1708163445639,-3790.84564533,0.00048,30]
[314298349,1708163445649,-1910.78243608,0.00048075,13]
[314298351,1708163445661,-2794.76931678,0.00048075,13]
[314298353,1708163445672,-1106.14000791,0.00048075,13]
[314298354,1708163445682,-1659.7397369,0.00048085,9]
[314298355,1708163445691,-554.410146,0.00048085,9]
[314298357,1708163445700,-901.22601997,0.000482,5]
[314298359,1708163445709,-153.62677801,0.000482,37]
[314298361,1708163445719,-153.78,0.000483,6]
[314298363,1708163445728,-153.78,0.000483,6]
[314298364,1708163445737,-153.78,0.000483,6]
[314298365,1708163445746,-153.78,0.000483,6]
[314298366,1708163445755,-185.15439121,0.00048486,18]
[314298367,1708163445767,-2787.5,0.00048486,18]
[314298368,1708163445779,-1090.332122,0.00048486,18]
[314298371,1708163470497,76272.92274761,0.00023,2]
[314298372,1708163470529,20503.7229523,0.00023,2]
[314298373,1708163470558,5478.37711575,0.00023,2]
[314298374,1708163470583,478.37711575,0.00023,2]
[314298375,1708163470608,478.37711575,0.00023,2]
[314298376,1708163470638,478.37711575,0.00023,2]
[314298377,1708163470663,478.37711575,0.00023,2]
[314298378,1708163470688,6478.37711575,0.00023,2]
[314298379,1708163470714,243541.37711575,0.00023,2]
[314298380,1708163470738,25000.0,0.00023,2]
[314298381,1708163492717,150.0,0.0001,2]
[314298382,1708163492738,150.0,0.0001,2]
[314298383,1708163492759,150.0,0.0001,2]
[314298384,1708163492779,150.0,0.0001,2]
[314298385,1708163492802,318.05793078,0.0001,2]
[314298386,1708163606364,-406.88692884,0.00022997,2]
[314298387,1708163606384,-193.11307116,0.00022998,2]
[314298388,1708163613919,150.0,0.00022,2]
[314298389,1708163613939,150.0,0.00022,2]
[314298390,1708163613959,150.0,0.00022,2]
[314298391,1708163613980,50.0,0.00022,2]
[314298392,1708163640750,-25000.0,0.000229,2]
[314298393,1708163641685,-25000.0,0.000229,2]
[314298394,1708163643268,-1047.79729017,0.00022899,2]
[314298395,1708163643293,-150.0,0.00022899,2]
[314298396,1708163643317,-23802.20270983,0.000229,2]
[314298397,1708163643596,-25000.0,0.000229,2]
[314298400,1708163644525,-25000.0,0.000229,2]
[314298401,1708163645426,-25000.0,0.000229,2]
[314298402,1708163646375,-25000.0,0.000229,2]
[314298403,1708163647254,-25000.0,0.000229,2]
[314298404,1708163648123,-25000.0,0.000229,2]
[314298405,1708163649014,150.0,0.0002,2]
[314298406,1708163649040,150.0,0.0002,2]
[314298407,1708163649064,150.0,0.0002,2]
[314298408,1708163649091,150.0,0.0002,2]
[314298409,1708163649116,150.0,0.0002,2]
[314298410,1708163649142,150.0,0.0002,2]
[314298411,1708163649169,150.0,0.0002,2]
[314298412,1708163649193,150.0,0.0002,2]
[314298413,1708163649216,150.0,0.0002,2]
[314298414,1708163649239,150.0,0.0002,2]
[314298415,1708163649263,150.0,0.0002,2]
[314298416,1708163649289,150.0,0.0002,2]
[314298417,1708163649313,150.0,0.0002,2]
[314298418,1708163649338,26.49885611,0.0002,2]
[314298419,1708163649377,-25000.0,0.000229,2]
[314298420,1708163652375,708.22377497,0.00012,30]
[314298421,1708163658400,150.0,0.0002,2]
[314298422,1708163658420,6.40619022,0.0002,2]
[314298423,1708163662260,470.29843405,0.00018,2]
[314298424,1708163664450,412.74917962,0.000137,2]
[314298426,1708163665011,155.28464927,0.00022,2]
[314298427,1708163738302,-600.0,0.00022799,2]
[314298430,1708163910646,200.0,0.00022043,2]
[314298431,1708163939816,155.0,0.00022043,2]
[314298432,1708163955809,155.0,0.00022043,2]
[314298433,1708163971805,150.0,0.00022043,2]
[314298434,1708163971827,5.0,0.00022043,2]
[314298435,1708163991986,150.0,0.00022043,2]
[314298436,1708163992007,5.0,0.00022043,2]
[314298437,1708164004713,150.0,0.00022043,2]
[314298438,1708164004735,42.16230515,0.00022043,2]
[314298439,1708164013988,150.0,0.00022043,2]
[314298440,1708164014012,129.66133217,0.00022043,2]
[314298441,1708164059873,250.0,0.00022,2]
[314298442,1708164091134,220.74131635,0.00022043,2]
[314298443,1708164091155,55.13565592,0.00022043,2]
[314298445,1708164142356,1225.03,0.00021883,2]
[314298446,1708164240950,177.43,0.00022,2]
[314298447,1708164288724,500.0,0.000219,2]
[314298448,1708164292795,150.0,0.000219,2]
[314298449,1708164303820,150.0,0.00022,2]
[314298450,1708164320583,519.58723002,0.00022,2]
[314298451,1708164338562,519.58723002,0.00022,2]
[314298452,1708164349055,270.70494684,0.00022,2]
[314298453,1708164384580,270.70494684,0.00022,2]
[314298454,1708164400581,270.70494684,0.00022,2]
[314298455,1708164418584,270.70494684,0.00022,2]
[314298457,1708164437085,270.70494684,0.00022,2]
[314298458,1708164457086,270.70494684,0.00022,2]
[314298459,1708164481089,270.70494684,0.00022,2]
[314298460,1708164499094,270.70494684,0.00022,2]
[314298461,1708164515095,270.70494684,0.00022,2]
[314298462,1708164537095,270.70494684,0.00022,2]
[314298463,1708164543630,1852.42,0.00022132,2]
[314298464,1708164547753,6627.9,0.00022121,2]
[314298465,1708164553097,306.64688206,0.00022,2]
[314298466,1708164555774,2877.57,0.00022107,2]
[314298467,1708164594033,2705.0,0.00022051,2]
[314298468,1708164602693,23900.0,0.00022051,2]
[314298469,1708164604627,1163.77,0.00020133,2]
[314298470,1708164612252,162.89,0.00022118,2]
[314298471,1708164617694,250.0,0.00021918,2]
[314298472,1708164624019,500.0,0.00021772,2]
[314298477,1708164631584,-900.75374739,0.00022193,2]
[314298479,1708164631696,-147.04354278,0.00022193,2]
[314298480,1708164631706,-500.0,0.00022194,2]
[314298481,1708164631715,-1000.0,0.00022194,2]
[314298482,1708164631725,-500.0,0.00022255,2]
[314298483,1708164631734,-200.0,0.00022255,2]
[314298484,1708164631743,-162.89,0.00022262,2]
[314298485,1708164631752,-1933.85313836,0.00022272,2]
[314298486,1708164631762,-250.0,0.00022274,2]
[314298487,1708164631771,-2981.61,0.00022284,2]
[314298488,1708164631781,-1627.29,0.00022314,2]
[314298489,1708164631790,-250.0,0.00022376,2]
[314298490,1708164631799,-1163.77,0.00022397,2]
[314298491,1708164631808,-162.89,0.00022406,2]
[314298492,1708164631817,-150.0,0.00022439,2]
[314298493,1708164631827,-150.0,0.00022448,2]
[314298494,1708164631836,-150.0,0.00022547,2]
[314298495,1708164631845,-365.77012968,0.00022548,2]
[314298496,1708164631855,-177.43,0.00022548,2]
[314298497,1708164631864,-162.89,0.0002255,2]
[314298498,1708164631875,-162.89,0.00022694,2]
[314298499,1708164631886,-152.32333031,0.000227,2]
[314298500,1708164631895,-499.99,0.000227,2]
[314298501,1708164631904,-152.32333027,0.0002275,2]
[314298502,1708164631915,-150.99,0.0002275,2]
[314298503,1708164631924,-2000.0,0.00022799,2]
[314298504,1708164631934,-152.06641792,0.000228,2]
[314298505,1708164631944,-175.78710656,0.000228,2]
[314298506,1708164631953,-152.32333027,0.000228,2]
[314298507,1708164631963,-315.7329094,0.000228,2]
[314298508,1708164631973,-176.54488879,0.000228,2]
[314298509,1708164631982,-380.40097006,0.000228,2]
[314298510,1708164631991,-162.89,0.00022838,2]
[314298511,1708164632000,-152.32333027,0.0002285,2]
[314298512,1708164632010,-218.08380746,0.00022898,2]
[314298513,1708164632019,-1000.0,0.00022899,2]
[314298514,1708164632029,-500.0,0.00022899,2]
[314298515,1708164632038,-223.42771661,0.00022899,2]
[314298517,1708164632048,-1751197.79729017,0.000229,2]
[314298519,1708164632057,-152.32333027,0.000229,2]